{"text_format":"1","workbook":"xlsx","n_sheets":1,"sheets":["new1"],"not_rendered":{"charts":0,"images":0,"macros":1,"external_links":0,"defined_names":0,"comments":0,"pivot_tables":0},"unopened":[],"bounds":{"document_bytes":16777216,"sheet_cells":100000,"rows_first":2000,"rows_last":500,"rows_between":2000,"halvings":0,"cell_chars":16384,"cell_head_chars":4096},"cells_cut":0,"cells_raw":0,"read":"whole","date_system":"1900"}

{"sheet":"new1","index":0,"n_rows":333,"n_cols":20,"rows_kept":333,"cut":false,"hidden":false,"merged":[[0,10,0,11],[0,12,0,13],[0,14,0,15],[0,16,0,17],[0,18,0,19],[0,0,0,1],[0,2,0,3],[0,4,0,5],[0,6,0,7],[0,8,0,9]]}
["معمل",null,"اندلس",null,"موكامبو",null,"شيخ نجار",null,"حميدية",null,"مندوبي حلب",null,"مندوبي دمشق",null,"مندوبي طرطوس",null,"مندوبي اللاذقية"]
[null,{"$f":"CountByColor(B7:B100, A2)","v":66},null,{"$f":"CountByColor(D7:D100, C2)","v":2},null,{"$f":"CountByColor(F7:F100, E2)","v":1},null,{"$f":"CountByColor(H7:H100,G2)","v":0},null,{"$f":"CountByColor(J7:J100, I2)","v":11},null,{"$f":"CountByColor(L7:L100,K2)","v":10},null,{"$f":"CountByColor(N7:N100, M2)","v":4},null,{"$f":"CountByColor(P7:P100, O2)","v":1},null,{"$f":"CountByColor(R7:R100, Q2)","v":1},null,{"$f":"CountByColor(T7:T100, S2)","v":0}]
[null,{"$f":"CountByColor(B7:B100, A3)","v":10},null,{"$f":"CountByColor(D7:D100, C3)","v":1},null,{"$f":"CountByColor(F7:F100, E3)","v":0},null,{"$f":"CountByColor(H7:H100, G3)","v":1},null,{"$f":"CountByColor(J7:J100, I3)","v":0},null,{"$f":"CountByColor(L7:L100,K3)","v":0},null,{"$f":"CountByColor(N7:N100, M3)","v":0},null,{"$f":"CountByColor(P7:P100, O3)","v":0},null,{"$f":"CountByColor(R7:R100, Q3)","v":0},null,{"$f":"CountByColor(T7:T100, S3)","v":0}]
[null,{"$f":"CountByColor(B7:B100, A4)","v":3},null,{"$f":"CountByColor(D7:D100, C4)","v":2},null,{"$f":"CountByColor(F7:F100, E4)","v":1},null,{"$f":"CountByColor(H7:H100, G4)","v":0},null,{"$f":"CountByColor(J7:J100, I4)","v":0},null,{"$f":"CountByColor(L7:L100, K4)","v":3},null,{"$f":"CountByColor(N7:N100, M4)","v":1},null,{"$f":"CountByColor(P7:P100, O4)","v":1},null,{"$f":"CountByColor(R7:R100, Q4)","v":1},null,{"$f":"CountByColor(T7:T100, S4)","v":0}]
[null,{"$f":"CountByColor(B7:B100, A5)","v":15},null,{"$f":"CountByColor(D7:D100, C5)","v":2},null,{"$f":"CountByColor(F7:F100, E5)","v":0},null,{"$f":"CountByColor(H7:H100, G5)","v":0},null,{"$f":"CountByColor(J7:J100,I5)","v":9},null,{"$f":"CountByColor(L7:L100, K5)","v":2},null,{"$f":"CountByColor(N7:N100, M5)","v":3},null,{"$f":"CountByColor(P7:P100, O5)","v":0},null,{"$f":"CountByColor(R7:R100, Q5)","v":0},null,{"$f":"CountByColor(T7:T100, S5)","v":0}]
["ID","الاسم","ID","الاسم","ID","الاسم","ID","الاسم","ID","الاسم","ID","الاسم","ID","الاسم","ID","الاسم","ID","الاسم","معمل",{"$f":"sumbycolor($B$3:$B$329,S6)","v":{"$error":"#NAME?"}}]
[1,"إبراهيم الكيلاني",1,"صبري بصمه جي",1,"جميل اومو",1,"تاج الدين حميدي",1,"احمد حاج يونس",1,"احمد طوبال",1,"بشرى سليمان",1,"رند حسين",1,"ماريا إبراهيم","حميدية"]
[2,"إبراهيم حكمت قاوجي",2,"فيصل طويلة",2,"رانيا محوك",null,null,2,"انس الصالح",2,"احمد مانعي",2,"رؤى الجمعة الحمود",2,"فرح صالح",2,"مي عيد"]
[3,"إبراهيم حمادي",3,"مازن بابتجي",3,"سلوى علاف",null,null,3,"ايسر الحمدو",3,"انتونيت  كحالة",3,"رنيم علي",3,"يزن ناصر",null,null,"مستودع"]
[4,"أبو رمضان",4,"محمد خير ناصر",null,null,null,null,4,"جورج خوكاز",4,"تسنيم مكتبي",4,"علا بجبج",null,null,null,null,"موكامبو"]
[5,"أحمد باكير",5,"هدير كردي",null,null,null,null,5,"حسان علي",5,"ديانا حنان",5,"فاطر عيسى",null,null,null,null,"اندلس"]
[6,"أحمد هاشم ايزا",6,"يوسف نوار سكري",null,null,null,null,6,"حسين محمد",6,"روان شعبو",6,"محمد بشللي",null,null,null,null,"شيخ نجار"]
[7,"أسامة ياسين",null,null,null,null,null,null,7,"زكريا بحسيتي",7,"ريهام الخطيب",7,"محمد رامي العاص",null,null,null,null,"مندوبي حلب"]
[8,"أنس السبيع",null,null,null,null,null,null,8,"سامر نشار",8,"سندس غضبان",8,"محمد مدادة",null,null,null,null,"مندوبي دمشق"]
[9,"أنور إبراهيم",null,null,null,null,null,null,9,"شاهر صباغ",9,"علي سليمان",9,"نغم الزيدان",null,null,null,null,"مندوبي الاذقية"]
[10,"ابراهيم علي",null,null,null,null,null,null,10,"عبد الحميد عطار",10,"مجد الدين ابو زلام",10,"يارا بعكر",null,null,null,null,"مندوبي طرطوس"]
[11,"احمد اعرابي",null,null,null,null,null,null,11,"عبد الله بطش",11,"محمد العتك",null,null,null,null,null,null,"خارجي"]
[12,"احمد الابراهيم",null,null,null,null,null,null,12,"عبد الله حجار",12,"محمد بشار قلعه جي"]
[13,"احمد الجابر",null,null,null,null,null,null,13,"عمار مكتبي",13,"محمد ظهير صيرفي"]
[14,"احمد الحمدان",null,null,null,null,null,null,14,"عمر خياطة",14,"محمد نور بازرباشي"]
[15,"احمد الخميس",null,null,null,null,null,null,15,"فاتح صالح",15,"مروة رسلان"]
[16,"احمد العمر",null,null,null,null,null,null,16,"محمد السيد"]
[17,"احمد حاج إسماعيل",null,null,null,null,null,null,17,"محمد رامي الحمدو"]
[18,"احمد حاج وحيد",null,null,null,null,null,null,18,"محمد طوبال"]
[19,"احمد حمداش",null,null,null,null,null,null,19,"محمد عبد اللطيف"]
[20,"احمد حمو",null,null,null,null,null,null,20,"محمد عطري"]
[21,"احمد خرمه",null,null,null,null,null,null,21,"محمد لقمان المغربي"]
[22,"احمد خللو",null,null,null,null,null,null,22,"محمد مدراتي"]
[23,"احمد سامي شريفة",null,null,null,null,null,null,23,"محمود برغود"]
[24,"احمد عفاشة",null,null,null,null,null,null,24,"مروة رسلان /مكرر/"]
[25,"احمد علي الحسين",null,null,null,null,null,null,25,"مصطفى درويش"]
[26,"احمد فخرو",null,null,null,null,null,null,26,"مصطفى مخزوم"]
[27,"احمد قطماوي",null,null,null,null,null,null,27,"موفق السليمان"]
[28,"احمد قمند",null,null,null,null,null,null,28,"وديع توما"]
[29,"احمد قيلش"]
[30,"احمد مندو"]
[31,"اديب الصفدي"]
[32,"اسعد حاج ديبو"]
[33,"اقبال استانبولي"]
[34,"الاء طويل"]
[35,"امال البيك"]
[36,"امجد طقش"]
[37,"امل حسون"]
[38,"امل شيخو"]
[39,"امينة علي"]
[40,"اية الباش"]
[41,"اية سيد يحيى"]
[42,"اية طالب"]
[43,"ايلاف بخاري"]
[44,"ايمان الخضر"]
[45,"ايمن الخضر"]
[46,"ايمن سنكري"]
[47,"باسل العبدلله"]
[48,"باسم عبد ربو"]
[49,"بانة وراق"]
[50,"بشار حردان"]
[51,"بشير ياعو"]
[52,"بكري رحمو"]
[53,"بوظان شيخ كيلو"]
[54,"بيان النجار"]
[55,"بيان مرعي"]
[56,"تسنيم حلبي"]
[57,"تسنيم سيد"]
[58,"تسنيم طويلة"]
[59,"تغريد قره نيق"]
[60,"تميمه كالوك"]
[61,"ثروت ابراهيم"]
[62,"ثريا حاج محمد"]
[63,"ثناء عموري"]
[64,"جمال العبدلله"]
[65,"جمعة فدعون"]
[66,"جهان استانبولي"]
[67,"جهينة التنجي"]
[68,"جورجي شايب"]
[69,"حسام صايغ"]
[70,"حسام طويلة"]
[71,"حسن إبراهيم"]
[72,"حسن النعسان"]
[73,"حسن خرمه"]
[74,"حسيبة عبد الرحمن"]
[75,"حسين صطوف"]
[76,"حسين عبد القادر"]
[77,"حسين نشار"]
[78,"حلا عمر عموري"]
[79,"حمزة حاج ديبو"]
[80,"حمود العبد الله"]
[81,"خالد أبو حسان"]
[82,"خالد حسون"]
[83,"ختام هاشم ايزا"]
[84,"خدوج عثمان"]
[85,"خديجة سويد"]
[86,"خديجة عتمة"]
[87,"خلف العثمان"]
[88,"دعاء الخطيب"]
[89,"دعاء حاج اسماعيل"]
[90,"دعاء دع"]
[91,"دنيا شريفه"]
[92,"دياب حاج ديبو"]
[93,"ديما قبيطري"]
[94,"رائد مكانسي"]
[95,"رازق خوري"]
[96,"راما شويحنة"]
[97,"رامي النعسان"]
[98,"رامي عبد الحي"]
[99,"رجب طوبال"]
[100,"رجوى ناعية"]
[101,"رحمة علي"]
[102,"رفقي قدور"]
[103,"رنا سنساوي"]
[104,"رنيم عرعش"]
[105,"رهام الجابر"]
[106,"رهام ياسين"]
[107,"رهى أبو دان"]
[108,"روان الخطيب"]
[109,"روان المسلم"]
[110,"زكريا عفاشة"]
[111,"زهرة البكور"]
[112,"زهير بوشي"]
[113,"سائر دواي"]
[114,"سارة الباشا"]
[115,"سارة الناعم"]
[116,"سامر زبيده"]
[117,"سركيس طوماسيان"]
[118,"سعد محمود"]
[119,"سمر عفاشة"]
[120,"سميحة حمشو"]
[121,"سنا جلود"]
[122,"سهاد تفتنازي"]
[123,"سهام العبيد"]
[124,"سهيل سبسبي"]
[125,"سيارة تلحدية"]
[126,"سيارة قورقنيا"]
[127,"شادي بريص"]
[128,"شريف مصطفى"]
[129,"شهد طرابيشي"]
[130,"شهد قطنه جي"]
[131,"شيار جمعة"]
[132,"شيماء لطوف"]
[133,"صالحه مصطفى"]
[134,"طارق الحاجي جاسم"]
[135,"طارق نشاوي"]
[136,"طلال حلي"]
[137,"طلال عقاد"]
[138,"طلال فحل"]
[139,"طه حاج ديبو"]
[140,"عائشة حاج مصطفى"]
[141,"عامر عبد السلام"]
[142,"عبد الاله العلي"]
[143,"عبد الباسط حسين"]
[144,"عبد الحكيم طبشو"]
[145,"عبد الحكيم طبشو (حارس)"]
[146,"عبد الحميد جلب"]
[147,"عبد الرحمن عبد الرحمن"]
[148,"عبد الرحمن قباني"]
[149,"عبد الرزاق طبشو"]
[150,"عبد الستار احمد"]
[151,"عبد العزيز حسين"]
[152,"عبد العزيز حسين ( حارس )"]
[153,"عبد العزيز مراد"]
[154,"عبد الفتاح حموية"]
[155,"عبد القادر احمد"]
[156,"عبد القادر حساني"]
[157,"عبد الله درويش"]
[158,"عبد الله طقش"]
[159,"عبد المعطي كردي"]
[160,"عبد الهادي معصراني"]
[161,"عبد الوهاب كبة"]
[162,"عبدالله كردي"]
[163,"عبدو طبشو"]
[164,"عدي خطاب"]
[165,"عريفه حسو"]
[166,"عزام ناعس"]
[167,"عزة حمامي"]
[168,"عصام الزبيدي"]
[169,"عصام شعبان"]
[170,"عفاف دملخي"]
[171,"علا بي ابو دبوس"]
[172,"علا عبد الرحمن"]
[173,"علاء الحسام"]
[174,"علي احمد اعرابي"]
[175,"علي الخلف"]
[176,"علي اليوسف"]
[177,"علي بستاني"]
[178,"علي طهاري"]
[179,"علي عبد الحي"]
[180,"علي عفش"]
[181,"علي محمد ديب"]
[182,"عماد الابراهيم"]
[183,"عماد الدين ططري"]
[184,"عماد بدوي"]
[185,"عمار شبارق"]
[186,"عمار عيسى"]
[187,"عمر اطرش"]
[188,"عمر العمر"]
[189,"عمر كوردو"]
[190,"عهد علي"]
[191,"عيسى العلي"]
[192,"غدير ريحان"]
[193,"غدير سيد بكور"]
[194,"غزوة سويد"]
[195,"غفران دوارة"]
[196,"فائزة رجوب"]
[197,"فادي الخلف"]
[198,"فادي بولص"]
[199,"فادي سالم"]
[200,"فاطمة الزهراء إسماعيل"]
[201,"فاطمة لطوف"]
[202,"فاطمه كواكبي"]
[203,"فان الشعار"]
[204,"فتحية فاني"]
[205,"فراس حمادة"]
[206,"فريال الخضر"]
[207,"فوزي عمر"]
[208,"قدريه عزيزه"]
[209,"قره حسين حسين جبرائيل"]
[210,"قمر الرسلان"]
[211,"كريم ترك خولندي"]
[212,"لؤي عقيلي"]
[213,"لبنى سواس"]
[214,"ليلى كسار"]
[215,"ماهر صابوني"]
[216,"محمد أمين قداح"]
[217,"محمد اسلام حريتاني"]
[218,"محمد اسماعيل حمداش"]
[219,"محمد اشقر"]
[220,"محمد اطرش"]
[221,"محمد الشحنه"]
[222,"محمد المحمد"]
[223,"محمد بدر الدين الحوت"]
[224,"محمد بشار جمعة"]
[225,"محمد بكر"]
[226,"محمد تفنكجي"]
[227,"محمد جبولي"]
[228,"محمد جمعة السيد يحيى"]
[229,"محمد جميل فرواتي"]
[230,"محمد حردان"]
[231,"محمد حريتاني"]
[232,"محمد حطبي"]
[233,"محمد حمدو"]
[234,"محمد خالد انابلي"]
[235,"محمد خرمه"]
[236,"محمد دالاتي"]
[237,"محمد دهبي"]
[238,"محمد رامي جبان"]
[239,"محمد رضوان عثمان"]
[240,"محمد سمرة"]
[241,"محمد شاهين"]
[242,"محمد شحرور"]
[243,"محمد شومان"]
[244,"محمد صالح خزنه"]
[245,"محمد صبري بكر"]
[246,"محمد طبق"]
[247,"محمد طقش"]
[248,"محمد طيب الجابر"]
[249,"محمد عباس السيد"]
[250,"محمد عبد الحميد محمد"]
[251,"محمد عبد الرحمن حكيم"]
[252,"محمد عبد السلام"]
[253,"محمد علي الأحمد"]
[254,"محمد علي السليمان"]
[255,"محمد علي عفاشة"]
[256,"محمد عويد المحمد"]
[257,"محمد قصي ملاح"]
[258,"محمد كميشة"]
[259,"محمد محمد صالح"]
[260,"محمد محمود"]
[261,"محمد محمود محمود"]
[262,"محمد ملحم"]
[263,"محمد منجد كسار"]
[264,"محمد نضال جانات"]
[265,"محمد نور حباب"]
[266,"محمد نوفل ملحيس"]
[267,"محمد نيره باني"]
[268,"محمد هورو"]
[269,"محمد يمان جزماتي"]
[270,"محمود ابراهيم"]
[271,"محمود اسامة احمد"]
[272,"محمود الحميدي"]
[273,"محمود الفرج"]
[274,"محمود حاج مصطفى"]
[275,"محمود ضياء حجار"]
[276,"محمود طباع"]
[277,"محمود قباني"]
[278,"محمود محسن احمد"]
[279,"محي الدين حسن خالد"]
[280,"مراد دحروج"]
[281,"مرام الابراهيم"]
[282,"مرح قطان"]
[283,"مرهف نعساني"]
[284,"مصباح باكير"]
[285,"مصطفى السبيع"]
[286,"مصطفى حمود"]
[287,"مصطفى خلوف"]
[288,"مصطفى سمان"]
[289,"معتصم بالله زيزون"]
[290,"ممدوح سنان"]
[291,"منذر شحادة ديبو"]
[292,"موريس بازرجي"]
[293,"موفق ياسين"]
[294,"ناجي سيد"]
[295,"نادر قرنوب"]
[296,"نبهان محمد صالح"]
[297,"نجوى مفتاح"]
[298,"نديمة جمكي"]
[299,"نغم الاحمد"]
[300,"نهاد ادلبي قشاش"]
[301,"نور الحزوري"]
[302,"نور الدين الجابر"]
[303,"نور الدين عمر"]
[304,"نور سيد"]
[305,"نور طاوز"]
[306,"نور عثمان"]
[307,"نور عكام"]
[308,"نور ورد"]
[309,"هاني غرير"]
[310,"هبة السعيد"]
[311,"هدى حيزان"]
[312,"هيا مستت"]
[313,"هيثم الكشتو"]
[314,"هيفاء كسار"]
[315,"هيفين عمر"]
[316,"وائل شهابي"]
[317,"وائل مدراتي"]
[318,"وائل نعال"]
[319,"وفاء تتان"]
[320,"ولاء حيصو"]
[321,"ياسمين محلول"]
[322,"يامن علي"]
[323,"يوسف الأحمد"]
[324,"يوسف العيسى"]
[325,"يوسف خديجة"]
[326,"يوسف سعيد"]
[327,"يوسف عبد السلام"]